fUSD/lending_fUSD_20240909
["ID","MTS","AMOUNT","RATE_DAILY","PERIOD"]
[337586124,1725865842719,-150.0,0.00014814,2]
[337586125,1725865842729,-150.0,0.00014822,2]
[337586126,1725865842739,-150.0,0.00014826,2]
[337586127,1725865842748,-150.0,0.00014827,2]
[337586128,1725865842758,-150.0,0.00014829,2]
[337586129,1725865842768,-150.0,0.00014829,2]
[337586130,1725865842777,-150.0,0.00014831,2]
[337586131,1725865842787,-150.0,0.00014831,2]
[337586132,1725865842796,-150.0,0.00014833,2]
[337586133,1725865842806,-150.0,0.00014839,2]
[337586134,1725865842815,-150.0,0.0001484,2]
[337586135,1725865842825,-150.0,0.00014843,2]
[337586136,1725865842835,-150.0,0.00014847,2]
[337586137,1725865842844,-150.0,0.00014847,2]
[337586138,1725865842855,-150.0,0.00014848,2]
[337586139,1725865842867,-150.0,0.00014848,2]
[337586140,1725865842877,-150.0,0.00014848,2]
[337586141,1725865842887,-150.0,0.00014849,2]
[337586142,1725865842896,-150.0,0.00014854,2]
[337586143,1725865842906,-150.0,0.00014856,2]
[337586144,1725865842916,-150.0,0.0001486,2]
[337586145,1725865842925,-150.0,0.00014866,2]
[337586146,1725865842935,-150.0,0.00014866,2]
[337586147,1725865842943,-150.0,0.00014866,2]
[337586148,1725865842953,-500.0,0.00014873,2]
[337586149,1725865842962,-501.18325815,0.00014873,2]
[337586150,1725865842971,-150.0,0.00014875,2]
[337586151,1725865842981,-150.0,0.00014875,2]
[337586152,1725865842991,-150.0,0.00014877,2]
[337586153,1725865843000,-150.0,0.0001488,2]
[337586154,1725865843009,-150.0,0.00014883,2]
[337586155,1725865843019,-255.0,0.00014884,2]
[337586156,1725865843028,-150.0,0.0001489,2]
[337586157,1725865843037,-150.0,0.00014892,2]
[337586158,1725865843046,-150.0,0.00014894,2]
[337586159,1725865843055,-150.0,0.00014894,2]
[337586160,1725865843064,-150.0,0.00014898,2]
[337586161,1725865843074,-92186.99987064,0.00014898,2]
[337586162,1725865843083,-500.0,0.00014898,2]
[337586163,1725865843093,-2406.41,0.00014898,2]
[337586164,1725865843103,-2458.56,0.00014898,2]
[337586165,1725865843113,-500.0,0.00014898,2]
[337586166,1725865843123,-540.53,0.00014898,2]
[337586167,1725865843132,-1915.59,0.00014898,2]
[337586168,1725865843141,-500.0,0.00014899,2]
[337586169,1725865843153,-653.72,0.00014899,2]
[337586170,1725865843162,-500.0,0.00014899,2]
[337586171,1725865843172,-1164.1,0.00014899,2]
[337586173,1725865843181,-500.0,0.00014899,2]
[337586174,1725865843191,-751.31,0.00014899,2]
[337586175,1725865843201,-500.0,0.00014899,2]
[337586176,1725865843213,-576.81,0.00014899,2]
[337586177,1725865843223,-1317.97,0.00014899,2]
[337586178,1725865843235,-1317.97,0.00014899,2]
[337586179,1725865843244,-375.31133256,0.00014899,2]
[337586180,1725865843256,-500.0,0.00014899,2]
[337586181,1725865843266,-1408.05,0.00014899,2]
[337586182,1725865843275,-500.0,0.00014899,2]
[337586183,1725865843284,-1017.99,0.00014899,2]
[337586184,1725865843294,-500.0,0.00014899,2]
[337586185,1725865843303,-500.0,0.00014899,2]
[337586186,1725865843314,-500.0,0.00014899,2]
[337586187,1725865843323,-500.0,0.00014899,2]
[337586188,1725865843333,-2030.66,0.00014899,2]
[337586189,1725865843343,-500.0,0.00014899,2]
[337586190,1725865843352,-3611.9,0.00014899,2]
[337586191,1725865843362,-1080.06,0.00014899,2]
[337586192,1725865843371,-500.0,0.00014899,2]
[337586193,1725865843381,-1248.78,0.00014899,2]
[337586194,1725865843390,-500.0,0.00014899,2]
[337586195,1725865843400,-500.0,0.00014899,2]
[337586196,1725865843410,-500.0,0.00014899,2]
[337586197,1725865843419,-1143.5,0.00014899,2]
[337586198,1725865843429,-1736.84,0.00014899,2]
[337586199,1725865843439,-500.0,0.00014899,2]
[337586200,1725865843448,-731.39,0.00014899,2]
[337586201,1725865843458,-500.0,0.00014899,2]
[337586202,1725865843468,-500.0,0.00014899,2]
[337586203,1725865843477,-1335.04,0.00014899,2]
[337586204,1725865843487,-3861.82,0.00014899,2]
[337586205,1725865843496,-167.4987998,0.00014899,2]
[337586206,1725865843506,-532.52,0.00014899,2]
[337586207,1725865843515,-3447.45,0.00014899,2]
[337586208,1725865843525,-3087.54,0.00014899,2]
[337586209,1725865843535,-832.02,0.00014899,2]
[337586210,1725865843546,-628.05,0.00014899,2]
[337586211,1725865843556,-1486.77,0.00014899,2]
[337586212,1725865843566,-500.0,0.00014899,2]
[337586213,1725865843575,-645.86,0.00014899,2]
[337586214,1725865843585,-500.0,0.00014899,2]
[337586215,1725865843596,-500.0,0.00014899,2]
[337586216,1725865843606,-999.89,0.00014899,2]
[337586217,1725865843616,-500.0,0.00014899,2]
[337586218,1725865843625,-500.0,0.00014899,2]
[337586219,1725865843634,-901.18,0.00014899,2]
[337586220,1725865843644,-500.0,0.00014899,2]
[337586221,1725865843653,-5849.24,0.00014899,2]
[337586222,1725865843662,-500.0,0.00014899,2]
[337586223,1725865843671,-500.0,0.00014899,2]
[337586224,1725865843680,-500.0,0.00014899,2]
[337586225,1725865843689,-500.0,0.00014899,2]
[337586226,1725865843698,-3030.43,0.00014899,2]
[337586227,1725865843707,-5290.78,0.00014899,2]
[337586228,1725865843717,-4870.5,0.00014899,2]
[337586229,1725865843726,-4870.5,0.00014899,2]
[337586230,1725865843736,-500.0,0.00014899,2]
[337586231,1725865843745,-4797.87,0.00014899,2]
[337586232,1725865843755,-2615.69,0.00014899,2]
[337586233,1725865843764,-500.0,0.00014899,2]
[337586234,1725865843773,-788.89,0.00014899,2]
[337586235,1725865843782,-500.0,0.00014899,2]
[337586236,1725865843791,-3562.37,0.00014899,2]
[337586237,1725865843800,-3489.94,0.00014899,2]
[337586238,1725865843810,-500.0,0.00014899,2]
[337586239,1725865843819,-500.0,0.00014899,2]
[337586240,1725865843828,-500.0,0.00014899,2]
[337586241,1725865843837,-544.27,0.00014899,2]
[337586242,1725865843847,-711.19,0.00014899,2]
[337586243,1725865844215,-1928.01,0.00014899,2]
[337586244,1725865844225,-500.0,0.00014899,2]
[337586245,1725865844237,-500.0,0.00014899,2]
[337586246,1725865844247,-500.0,0.00014899,2]
[337586247,1725865844257,-3128.91,0.00014899,2]
[337586248,1725865844267,-860.85,0.00014899,2]
[337586249,1725865844276,-2613.38,0.00014899,2]
[337586250,1725865844286,-2613.38,0.00014899,2]
[337586251,1725865844296,-1475.26,0.00014899,2]
[337586252,1725865844305,-6161.26,0.00014899,2]
[337586253,1725865844315,-539.13,0.00014899,2]
[337586254,1725865844325,-832.05,0.00014899,2]
[337586255,1725865844334,-500.0,0.00014899,2]
[337586256,1725865844343,-960.18,0.00014899,2]
[337586257,1725865844353,-960.18,0.00014899,2]
[337586258,1725865844362,-1052.0,0.00014899,2]
[337586259,1725865844372,-1052.0,0.00014899,2]
[337586260,1725865844381,-102480.38,0.00014899,2]
[337586261,1725865844391,-819.86,0.00014899,2]
[337586262,1725865844401,-326.7876212,0.00014899,2]
[337586263,1725865844411,-500.0,0.00014899,2]
[337586264,1725865844420,-500.0,0.00014899,2]
[337586265,1725865844430,-400.99855706,0.00014899,2]
[337586266,1725865844439,-500.0,0.00014899,2]
[337586267,1725865844449,-1035.49,0.00014899,2]
[337586268,1725865844459,-500.0,0.00014899,2]
[337586269,1725865844469,-500.0,0.00014899,2]
[337586270,1725865844479,-500.0,0.00014899,2]
[337586271,1725865844489,-947.07,0.00014899,2]
[337586272,1725865844499,-500.0,0.00014899,2]
[337586273,1725865844510,-500.0,0.00014899,2]
[337586274,1725865844519,-6616.99,0.00014899,2]
[337586275,1725865844529,-2167.38,0.00014899,2]
[337586276,1725865844539,-500.0,0.00014899,2]
[337586277,1725865844549,-500.0,0.00014899,2]
[337586278,1725865844559,-1182.67,0.00014899,2]
[337586279,1725865844569,-500.0,0.00014899,2]
[337586280,1725865844578,-1182.67,0.00014899,2]
[337586281,1725865844588,-2779.11,0.00014899,2]
[337586282,1725865844598,-500.0,0.00014899,2]
[337586283,1725865844607,-500.0,0.00014899,2]
[337586284,1725865844617,-500.0,0.00014899,2]
[337586285,1725865844634,-579.60098813,0.00014899,2]
[337586286,1725865844644,-560.92,0.00014899,2]
[337586287,1725865844653,-560.92,0.00014899,2]
[337586288,1725865844662,-12176.63,0.00014899,2]
[337586289,1725865844672,-12176.63,0.00014899,2]
[337586290,1725865844682,-816.41,0.00014899,2]
[337586291,1725865844691,-816.41,0.00014899,2]
[337586292,1725865844701,-500.0,0.00014899,2]
[337586293,1725865844711,-724.31,0.00014899,2]
[337586294,1725865844722,-500.0,0.00014899,2]
[337586295,1725865844732,-500.0,0.00014899,2]
[337586296,1725865844742,-500.0,0.00014899,2]
[337586297,1725865844752,-500.0,0.00014899,2]
[337586298,1725865844763,-621.53,0.00014899,2]
[337586299,1725865844773,-500.0,0.00014899,2]
[337586300,1725865844783,-1538.11,0.00014899,2]
[337586301,1725865844793,-2061.46,0.00014899,2]
[337586302,1725865844803,-500.0,0.00014899,2]
[337586303,1725865844812,-500.0,0.00014899,2]
[337586304,1725865844822,-500.0,0.00014899,2]
[337586305,1725865844832,-1101.09,0.00014899,2]
[337586306,1725865844842,-2406.41,0.00014899,2]
[337586307,1725865844852,-2406.41,0.00014899,2]
[337586308,1725865844862,-2801.47,0.00014899,2]
[337586309,1725865844874,-2801.47,0.00014899,2]
[337586310,1725865844884,-500.0,0.00014899,2]
[337586311,1725865844894,-772.87,0.00014899,2]
[337586312,1725865844904,-772.87,0.00014899,2]
[337586313,1725865844913,-500.0,0.00014899,2]
[337586314,1725865844923,-1172.72,0.00014899,2]
[337586315,1725865844933,-1172.72,0.00014899,2]
[337586316,1725865844942,-1347.97,0.00014899,2]
[337586317,1725865844953,-2458.56,0.00014899,2]
[337586318,1725865844963,-2458.56,0.00014899,2]
[337586319,1725865844972,-500.0,0.00014899,2]
[337586320,1725865844982,-500.0,0.00014899,2]
[337586321,1725865844992,-1197.58,0.00014899,2]
[337586322,1725865845001,-500.0,0.00014899,2]
[337586323,1725865845011,-2055.37,0.00014899,2]
[337586324,1725865845021,-1197.58,0.00014899,2]
[337586325,1725865845030,-500.0,0.00014899,2]
[337586326,1725865845040,-1503.76,0.00014899,2]
[337586327,1725865845049,-677.89,0.00014899,2]
[337586328,1725865845059,-677.89,0.00014899,2]
[337586329,1725865845069,-500.0,0.00014899,2]
[337586330,1725865845078,-540.53,0.00014899,2]
[337586331,1725865845088,-500.0,0.00014899,2]
[337586332,1725865845098,-540.53,0.00014899,2]
[337586333,1725865845108,-500.0,0.00014899,2]
[337586334,1725865845130,-1915.59,0.00014899,2]
[337586335,1725865845140,-1915.59,0.00014899,2]
[337586336,1725865845153,-500.0,0.00014899,2]
[337586337,1725865845163,-1954.86,0.00014899,2]
[337586338,1725865845173,-500.0,0.00014899,2]
[337586339,1725865845182,-500.0,0.00014899,2]
[337586340,1725865845192,-500.0,0.00014899,2]
[337586341,1725865845202,-862.0,0.000149,2]
[337586342,1725865845211,-2500.0,0.000149,2]
[337586343,1725865845224,-2500.0,0.000149,2]
[337586344,1725865845233,-500.0,0.000149,2]
[337586345,1725865845243,-38970.8497,0.000149,2]
[337586346,1725865845253,-9532.7931,0.000149,2]
[337586347,1725865845263,-100000.0,0.000149,2]
[337586348,1725865845273,-245000.0,0.000149,2]
[337586349,1725865845283,-6558.004,0.000149,2]
[337586350,1725865845292,-297.2442,0.000149,2]
[337586351,1725865845303,-1806.7118,0.000149,2]
[337586352,1725865845313,-1000.0,0.000149,2]
[337586353,1725865845323,-150.0,0.000149,2]
[337586354,1725865845333,-150.0,0.00014901,2]
[337586355,1725865845343,-150.0,0.00014903,2]
[337586356,1725865845353,-150.0,0.00014904,2]
[337586357,1725865845363,-150.0,0.00014906,2]
[337586358,1725865845375,-150.0,0.00014907,2]
[337586359,1725865845384,-150.0,0.00014908,2]
[337586360,1725865845395,-150.0,0.00014908,2]
[337586361,1725865845404,-150.0,0.00014912,2]
[337586362,1725865845414,-150.0,0.00014913,2]
[337586363,1725865845424,-150.0,0.00014914,2]
[337586364,1725865845436,-150.0,0.0001492,2]
[337586365,1725865845446,-150.0,0.00014922,2]
[337586366,1725865845457,-150.0,0.00014923,2]
[337586367,1725865845466,-150.0,0.00014923,2]
[337586368,1725865845476,-150.0,0.00014925,2]
[337586369,1725865845486,-150.0,0.00014925,2]
[337586370,1725865845495,-150.0,0.00014928,2]
[337586371,1725865845505,-150.0,0.0001493,2]
[337586372,1725865845516,-150.0,0.00014931,2]
[337586373,1725865845528,-150.0,0.00014933,2]
[337586374,1725865845538,-150.0,0.00014945,2]
[337586375,1725865845549,-150.0,0.0001495,2]
[337586376,1725865845559,-150.0,0.00014953,2]
[337586377,1725865845570,-150.0,0.00014956,2]
[337586378,1725865845581,-150.0,0.00014958,2]
[337586379,1725865845592,-150.0,0.00014959,2]
[337586380,1725865845601,-180.47,0.0001496,2]
[337586381,1725865845610,-150.0,0.0001496,2]
[337586382,1725865845621,-150.0,0.00014963,2]
[337586383,1725865845631,-150.0,0.00014966,2]
[337586384,1725865845640,-300.0,0.00014966,2]
[337586385,1725865845650,-150.0,0.00014967,2]
[337586386,1725865845659,-150.0,0.00014968,2]
[337586387,1725865845669,-150.0,0.00014971,2]
[337586388,1725865845678,-500.13707288,0.00014973,2]
[337586389,1725865845687,-150.0,0.00014973,2]
[337586390,1725865845696,-150.0,0.00014982,2]
[337586391,1725865845705,-161.25353498,0.00014986,2]
[337586392,1725865845715,-155.06661293,0.00014986,2]
[337586393,1725865845725,-194.75826541,0.00014986,2]
[337586394,1725865845734,-151.37641936,0.00014986,2]
[337586395,1725865845743,-150.57448812,0.00014986,2]
[337586396,1725865845753,-154.01683697,0.00014986,2]
[337586397,1725865845763,-150.0,0.00014987,2]
[337586398,1725865845773,-150.0,0.0001499,2]
[337586399,1725865845782,-150.0,0.00014993,2]
[337586400,1725865845792,-150.0,0.00014995,2]
[337586401,1725865845801,-500.0,0.00014997,2]
[337586402,1725865845811,-653.72,0.00014997,2]
[337586403,1725865845821,-500.0,0.00014997,2]
[337586404,1725865845830,-1164.1,0.00014997,2]
[337586405,1725865845840,-500.0,0.00014997,2]
[337586406,1725865845850,-751.31,0.00014997,2]
[337586407,1725865845859,-500.0,0.00014997,2]
[337586408,1725865845869,-576.81,0.00014997,2]
[337586409,1725865845878,-500.0,0.00014997,2]
[337586410,1725865845888,-500.0,0.00014997,2]
[337586411,1725865845897,-1017.99,0.00014997,2]
[337586412,1725865845906,-500.0,0.00014997,2]
[337586413,1725865845916,-500.0,0.00014997,2]
[337586414,1725865845925,-500.0,0.00014997,2]
[337586415,1725865845934,-500.0,0.00014997,2]
[337586416,1725865845943,-2030.66,0.00014997,2]
[337586417,1725865845952,-500.0,0.00014997,2]
[337586418,1725865845961,-3611.9,0.00014997,2]
[337586420,1725865845971,-1080.06,0.00014997,2]
[337586421,1725865845980,-500.0,0.00014997,2]
[337586422,1725865845989,-1248.78,0.00014997,2]
[337586423,1725865845999,-500.0,0.00014997,2]
[337586424,1725865846008,-1408.05,0.00014997,2]
[337586425,1725865846017,-1736.84,0.00014997,2]
[337586427,1725865846027,-1143.5,0.00014997,2]
[337586428,1725865846037,-500.0,0.00014997,2]
[337586430,1725865846047,-731.39,0.00014997,2]
[337586431,1725865846056,-500.0,0.00014997,2]
[337586432,1725865846065,-489.25308485,0.00014997,2]
[337586433,1725865846074,-3861.82,0.00014997,2]
[337586434,1725865846084,-532.52,0.00014997,2]
[337586435,1725865846093,-3447.45,0.00014997,2]
[337586436,1725865846103,-3087.54,0.00014997,2]
[337586437,1725865846112,-628.05,0.00014997,2]
[337586438,1725865846122,-1486.77,0.00014997,2]
[337586439,1725865846132,-500.0,0.00014997,2]
[337586440,1725865846142,-645.86,0.00014997,2]
[337586441,1725865846155,-500.0,0.00014997,2]
[337586442,1725865846165,-500.0,0.00014997,2]
[337586443,1725865846174,-999.89,0.00014997,2]
[337586444,1725865846183,-500.0,0.00014997,2]
[337586445,1725865846193,-500.0,0.00014997,2]
[337586446,1725865846203,-500.0,0.00014997,2]
[337586447,1725865846212,-500.0,0.00014997,2]
[337586448,1725865846222,-500.0,0.00014997,2]
[337586449,1725865846233,-500.0,0.00014997,2]
[337586450,1725865846242,-500.0,0.00014997,2]
[337586451,1725865846251,-3030.43,0.00014997,2]
[337586452,1725865846261,-500.0,0.00014997,2]
[337586453,1725865846270,-4797.87,0.00014997,2]
[337586454,1725865846280,-500.0,0.00014997,2]
[337586455,1725865846289,-788.89,0.00014997,2]
[337586456,1725865846299,-500.0,0.00014997,2]
[337586457,1725865846309,-3562.37,0.00014997,2]
[337586458,1725865846319,-500.0,0.00014997,2]
[337586459,1725865846329,-500.0,0.00014997,2]
[337586460,1725865846339,-500.0,0.00014997,2]
[337586461,1725865846348,-544.27,0.00014997,2]
[337586462,1725865846357,-711.19,0.00014997,2]
[337586463,1725865846367,-1928.01,0.00014997,2]
[337586464,1725865846376,-500.0,0.00014997,2]
[337586465,1725865846386,-500.0,0.00014997,2]
[337586466,1725865846395,-500.0,0.00014997,2]
[337586467,1725865846404,-860.85,0.00014997,2]
[337586468,1725865846414,-1475.26,0.00014997,2]
[337586469,1725865846423,-6161.26,0.00014997,2]
[337586470,1725865846433,-539.13,0.00014997,2]
[337586471,1725865846442,-832.05,0.00014997,2]
[337586472,1725865846451,-500.0,0.00014997,2]
[337586473,1725865846460,-960.18,0.00014997,2]
[337586474,1725865846470,-1052.0,0.00014997,2]
[337586475,1725865846479,-819.86,0.00014997,2]
[337586476,1725865846488,-500.0,0.00014997,2]
[337586477,1725865846497,-500.0,0.00014997,2]
[337586478,1725865846507,-500.0,0.00014997,2]
[337586479,1725865846516,-1035.49,0.00014997,2]
[337586480,1725865846525,-500.0,0.00014997,2]
[337586481,1725865846534,-500.0,0.00014997,2]
[337586482,1725865846543,-947.07,0.00014997,2]
[337586483,1725865846552,-500.0,0.00014997,2]
[337586484,1725865846562,-500.0,0.00014997,2]
[337586485,1725865846571,-6616.99,0.00014997,2]
[337586486,1725865846580,-2167.38,0.00014997,2]
[337586487,1725865846590,-500.0,0.00014997,2]
[337586488,1725865846599,-500.0,0.00014997,2]
[337586489,1725865846608,-2779.11,0.00014997,2]
[337586490,1725865846617,-500.0,0.00014997,2]
[337586491,1725865846794,-560.92,0.00014997,2]
[337586492,1725865846804,-12176.63,0.00014997,2]
[337586493,1725865846814,-816.41,0.00014997,2]
[337586494,1725865846826,-500.0,0.00014997,2]
[337586495,1725865846837,-500.0,0.00014997,2]
[337586496,1725865846847,-724.31,0.00014997,2]
[337586497,1725865846858,-500.0,0.00014997,2]
[337586498,1725865846868,-621.53,0.00014997,2]
[337586499,1725865846879,-500.0,0.00014997,2]
[337586500,1725865846889,-1538.11,0.00014997,2]
[337586501,1725865846900,-2061.46,0.00014997,2]
[337586502,1725865846910,-500.0,0.00014997,2]
[337586503,1725865846920,-1101.09,0.00014997,2]
[337586504,1725865846931,-2801.47,0.00014997,2]
[337586505,1725865846942,-500.0,0.00014997,2]
[337586506,1725865846951,-772.87,0.00014997,2]
[337586507,1725865846961,-500.0,0.00014997,2]
[337586508,1725865846971,-1347.97,0.00014997,2]
[337586509,1725865846980,-500.0,0.00014997,2]
[337586510,1725865846989,-500.0,0.00014997,2]
[337586511,1725865846999,-2055.37,0.00014997,2]
[337586512,1725865847008,-1197.58,0.00014997,2]
[337586513,1725865847017,-575.60413783,0.00014997,2]
[337586514,1725865847027,-1503.76,0.00014997,2]
[337586515,1725865847036,-500.0,0.00014997,2]
[337586516,1725865847045,-500.0,0.00014997,2]
[337586517,1725865847055,-1954.86,0.00014997,2]
[337586518,1725865847064,-500.0,0.00014997,2]
[337586519,1725865847074,-82796.3513248,0.00014998,5]
[337586520,1725865847083,-500.0,0.00014998,2]
[337586521,1725865847093,-500.0,0.00014998,2]
[337586522,1725865847102,-500.0,0.00014998,2]
[337586523,1725865847112,-500.0,0.00014998,2]
[337586524,1725865847121,-500.0,0.00014998,2]
[337586525,1725865847130,-500.45460293,0.00014998,2]
[337586526,1725865847139,-2406.41,0.00014998,2]
[337586527,1725865847152,-2406.41,0.00014998,2]
[337586528,1725865847164,-2406.41,0.00014998,2]
[337586529,1725865847174,-2406.41,0.00014998,2]
[337586530,1725865847183,-2406.41,0.00014998,2]
[337586531,1725865847192,-2406.41,0.00014998,2]
[337586532,1725865847202,-2406.41,0.00014998,2]
[337586533,1725865847211,-2406.41,0.00014998,2]
[337586534,1725865847220,-2458.56,0.00014998,2]
[337586535,1725865847231,-2458.56,0.00014998,2]
[337586536,1725865847241,-2458.56,0.00014998,2]
[337586537,1725865847250,-2458.56,0.00014998,2]
[337586538,1725865847259,-2458.56,0.00014998,2]
[337586539,1725865847268,-2458.56,0.00014998,2]
[337586540,1725865847278,-2458.56,0.00014998,2]
[337586541,1725865847288,-2458.56,0.00014998,2]
[337586542,1725865847297,-500.0,0.00014998,2]
[337586543,1725865847306,-540.53,0.00014998,2]
[337586544,1725865847315,-572.9074688,0.00014998,2]
[337586545,1725865847324,-540.53,0.00014998,2]
[337586546,1725865847334,-540.53,0.00014998,2]
[337586547,1725865847342,-540.53,0.00014998,2]
[337586548,1725865847352,-540.53,0.00014998,2]
[337586549,1725865847361,-540.53,0.00014998,2]
[337586550,1725865847371,-540.53,0.00014998,2]
[337586551,1725865847380,-540.53,0.00014998,2]
[337586552,1725865847391,-1915.59,0.00014998,2]
[337586553,1725865847400,-1915.59,0.00014998,2]
[337586554,1725865847409,-1915.59,0.00014998,2]
[337586555,1725865847418,-1915.59,0.00014998,2]
[337586556,1725865847427,-1915.59,0.00014998,2]
[337586557,1725865847436,-1915.59,0.00014998,2]
[337586558,1725865847446,-1915.59,0.00014998,2]
[337586559,1725865847455,-1915.59,0.00014998,2]
[337586560,1725865847464,-500.0,0.00014999,2]
[337586561,1725865847473,-653.72,0.00014999,2]
[337586562,1725865847483,-500.0,0.00014999,2]
[337586563,1725865847492,-500.0,0.00014999,2]
[337586564,1725865847501,-653.72,0.00014999,2]
[337586565,1725865847510,-500.0,0.00014999,2]
[337586566,1725865847519,-500.0,0.00014999,2]
[337586567,1725865847527,-500.0,0.00014999,2]
[337586568,1725865847536,-500.0,0.00014999,2]
[337586569,1725865847545,-653.72,0.00014999,2]
[337586570,1725865847554,-500.0,0.00014999,2]
[337586571,1725865847564,-653.72,0.00014999,2]
[337586572,1725865847572,-500.0,0.00014999,2]
[337586573,1725865847581,-500.0,0.00014999,2]
[337586574,1725865847591,-653.72,0.00014999,2]
[337586575,1725865847600,-500.0,0.00014999,2]
[337586576,1725865847609,-500.0,0.00014999,2]
[337586577,1725865847618,-1164.1,0.00014999,2]
[337586578,1725865847628,-500.0,0.00014999,2]
[337586579,1725865847637,-500.0,0.00014999,2]
[337586580,1725865847647,-1164.1,0.00014999,2]
[337586581,1725865847656,-653.72,0.00014999,2]
[337586582,1725865847665,-543.05253836,0.00014999,2]
[337586583,1725865847674,-500.0,0.00014999,2]
[337586584,1725865847683,-1164.1,0.00014999,2]
[337586585,1725865847692,-653.72,0.00014999,2]
[337586586,1725865847701,-500.0,0.00014999,2]
[337586587,1725865847710,-1164.1,0.00014999,2]
[337586588,1725865847719,-653.72,0.00014999,2]
[337586589,1725865847728,-500.0,0.00014999,2]
[337586590,1725865847737,-1164.1,0.00014999,2]
[337586591,1725865847747,-500.0,0.00014999,2]
[337586592,1725865847756,-1164.1,0.00014999,2]
[337586593,1725865847765,-653.72,0.00014999,2]
[337586594,1725865847775,-500.0,0.00014999,2]
[337586595,1725865847783,-1164.1,0.00014999,2]
[337586596,1725865847793,-653.72,0.00014999,2]
[337586597,1725865847802,-500.0,0.00014999,2]
[337586598,1725865847812,-1164.1,0.00014999,2]
[337586599,1725865847821,-653.72,0.00014999,2]
[337586600,1725865847831,-500.0,0.00014999,2]
[337586601,1725865847841,-1164.1,0.00014999,2]
[337586602,1725865847850,-653.72,0.00014999,2]
[337586603,1725865847859,-1164.1,0.00014999,2]
[337586604,1725865847869,-653.72,0.00014999,2]
[337586605,1725865847878,-500.0,0.00014999,2]
[337586606,1725865847888,-1164.1,0.00014999,2]
[337586607,1725865847897,-653.72,0.00014999,2]
[337586608,1725865847907,-500.0,0.00014999,2]
[337586609,1725865847916,-1164.1,0.00014999,2]
[337586610,1725865847926,-653.72,0.00014999,2]
[337586611,1725865847935,-500.0,0.00014999,2]
[337586612,1725865847945,-1164.1,0.00014999,2]
[337586613,1725865847955,-653.72,0.00014999,2]
[337586614,1725865847964,-500.0,0.00014999,2]
[337586615,1725865847974,-1164.1,0.00014999,2]
[337586616,1725865847983,-653.72,0.00014999,2]
[337586617,1725865847992,-1164.1,0.00014999,2]
[337586618,1725865848002,-653.72,0.00014999,2]
[337586619,1725865848011,-1164.1,0.00014999,2]
[337586620,1725865848022,-1164.1,0.00014999,2]
[337586621,1725865848032,-653.72,0.00014999,2]
[337586622,1725865848042,-1164.1,0.00014999,2]
[337586623,1725865848052,-1164.1,0.00014999,2]
[337586624,1725865848061,-1164.1,0.00014999,2]
[337586625,1725865848071,-1164.1,0.00014999,2]
[337586626,1725865848081,-1164.29882176,0.00014999,2]
[337586627,1725865848091,-653.72,0.00014999,2]